fUST/lending_fUST_20250118
["ID","MTS","AMOUNT","RATE_DAILY","PERIOD"]
[349478981,1737203448566,-500.0,0.00022602,3]
[349478983,1737203448576,-500.0,0.00022602,3]
[349478985,1737203448586,-500.0,0.00022602,3]
[349478987,1737203448596,-500.0,0.00022602,3]
[349478989,1737203448607,-500.0,0.00022602,3]
[349478991,1737203448617,-189.66,0.00022602,3]
[349478993,1737203448627,-500.0,0.00022602,3]
[349478995,1737203448636,-2827.76,0.00022602,3]
[349478997,1737203448647,-500.0,0.00022602,3]
[349478999,1737203448657,-500.0,0.00022602,3]
[349479001,1737203448667,-2135.98,0.00022602,3]
[349479003,1737203448677,-500.0,0.00022602,3]
[349479005,1737203448686,-500.0,0.00022602,3]
[349479007,1737203448697,-500.0,0.00022602,3]
[349479009,1737203448707,-500.0,0.00022602,3]
[349479011,1737203448716,-500.0,0.00022602,3]
[349479013,1737203448726,-500.0,0.00022602,3]
[349479016,1737203448736,-535.66,0.00022602,3]
[349479018,1737203448746,-500.0,0.00022602,3]
[349479020,1737203448756,-500.0,0.00022602,3]
[349479022,1737203448766,-500.0,0.00022602,3]
[349479024,1737203448775,-500.0,0.00022602,3]
[349479026,1737203448785,-500.0,0.00022602,3]
[349479027,1737203448795,-500.0,0.00022602,3]
[349479029,1737203448805,-500.0,0.00022602,3]
[349479031,1737203448815,-500.0,0.00022602,3]
[349479033,1737203448825,-519.31642483,0.00022602,3]
[349479035,1737203448835,-500.0,0.00022602,3]
[349479038,1737203448845,-599.39,0.00022602,3]
[349479040,1737203448855,-500.0,0.00022602,3]
[349479042,1737203448867,-500.0,0.00022602,3]
[349479044,1737203448877,-11999.26,0.00022602,3]
[349479046,1737203448891,-500.0,0.00022602,3]
[349479048,1737203448900,-500.0,0.00022602,3]
[349479050,1737203448910,-500.0,0.00022602,3]
[349479052,1737203448918,-500.0,0.00022602,3]
[349479054,1737203448929,-500.0,0.00022602,3]
[349479055,1737203448938,-500.0,0.00022602,3]
[349479057,1737203448947,-500.0,0.00022602,3]
[349479059,1737203448958,-500.0,0.00022602,3]
[349479061,1737203448968,-500.0,0.00022602,3]
[349479063,1737203448979,-500.0,0.00022602,3]
[349479065,1737203448988,-2144.0,0.00022602,3]
[349479067,1737203448998,-1152.45,0.00022602,3]
[349479069,1737203449007,-500.0,0.00022602,3]
[349479071,1737203449016,-500.0,0.00022602,3]
[349479073,1737203449026,-1329.89,0.00022602,3]
[349479075,1737203449036,-500.0,0.00022602,3]
[349479077,1737203449045,-500.0,0.00022602,3]
[349479079,1737203449055,-500.0,0.00022602,3]
[349479081,1737203449064,-7522.61,0.00022602,3]
[349479083,1737203449074,-216.35362651,0.00022685,2]
[349479085,1737203449083,-166.182605,0.00022687,7]
[349479086,1737203449092,-1587.602,0.00022692,2]
[349479088,1737203449103,-399.0,0.00022692,2]
[349479090,1737203449112,-500.0,0.00022739,3]
[349479092,1737203449122,-500.0,0.00022739,3]
[349479094,1737203449131,-500.0,0.00022739,3]
[349479096,1737203449141,-500.0,0.00022739,3]
[349479098,1737203449151,-527.64058808,0.00022739,3]
[349479100,1737203449160,-500.0,0.00022739,3]
[349479102,1737203449170,-500.0,0.00022739,3]
[349479104,1737203449180,-500.0,0.00022739,3]
[349479106,1737203449190,-500.0,0.00022739,3]
[349479108,1737203449199,-500.0,0.00022739,3]
[349479110,1737203449209,-500.0,0.00022739,3]
[349479112,1737203449218,-500.0,0.00022739,3]
[349479114,1737203449228,-607.04394082,0.00022739,3]
[349479116,1737203449238,-500.0,0.00022739,3]
[349479117,1737203449247,-500.0,0.00022739,3]
[349479119,1737203449257,-500.0,0.00022739,3]
[349479121,1737203449266,-500.0,0.00022739,3]
[349479123,1737203449276,-500.0,0.00022739,3]
[349479125,1737203449285,-500.0,0.00022739,3]
[349479127,1737203449295,-500.0,0.00022739,3]
[349479129,1737203449306,-500.0,0.00022739,3]
[349479131,1737203449316,-500.0,0.00022739,3]
[349479133,1737203449326,-500.0,0.00022739,3]
[349479135,1737203449336,-500.0,0.00022739,3]
[349479137,1737203449346,-2827.76,0.00022739,3]
[349479139,1737203449357,-500.0,0.00022739,3]
[349479141,1737203449367,-500.0,0.00022739,3]
[349479143,1737203449376,-2135.98,0.00022739,3]
[349479145,1737203449386,-500.0,0.00022739,3]
[349479147,1737203449395,-500.0,0.00022739,3]
[349479149,1737203449405,-500.0,0.00022739,3]
[349479151,1737203449415,-500.0,0.00022739,3]
[349479153,1737203449424,-487.54793235,0.00022739,3]
[349479154,1737203449434,-500.0,0.00022739,3]
[349479165,1737203449530,-535.66,0.00022739,3]
[349479167,1737203449540,-500.0,0.00022739,3]
[349479169,1737203449549,-500.0,0.00022739,3]
[349479171,1737203449559,-500.0,0.00022739,3]
[349479173,1737203449569,-500.0,0.00022739,3]
[349479175,1737203449579,-500.0,0.00022739,3]
[349479177,1737203449589,-500.0,0.00022739,3]
[349479179,1737203449598,-500.0,0.00022739,3]
[349479181,1737203449609,-500.0,0.00022739,3]
[349479183,1737203449619,-596.36,0.00022739,3]
[349479185,1737203449628,-599.39,0.00022739,3]
[349479187,1737203449638,-500.0,0.00022739,3]
[349479189,1737203449647,-500.0,0.00022739,3]
[349479190,1737203449656,-11999.26,0.00022739,3]
[349479192,1737203449666,-500.0,0.00022739,3]
[349479194,1737203449676,-500.0,0.00022739,3]
[349479196,1737203449686,-500.0,0.00022739,3]
[349479198,1737203449695,-500.0,0.00022739,3]
[349479200,1737203449704,-500.0,0.00022739,3]
[349479202,1737203449714,-500.0,0.00022739,3]
[349479204,1737203449723,-500.0,0.00022739,3]
[349479206,1737203449732,-500.0,0.00022739,3]
[349479208,1737203449742,-500.0,0.00022739,3]
[349479210,1737203449751,-500.0,0.00022739,3]
[349479212,1737203449761,-2144.0,0.00022739,3]
[349479214,1737203449770,-1152.45,0.00022739,3]
[349479215,1737203449779,-500.0,0.00022739,3]
[349479217,1737203449788,-500.0,0.00022739,3]
[349479219,1737203449798,-1329.89,0.00022739,3]
[349479221,1737203449807,-500.0,0.00022739,3]
[349479223,1737203449817,-500.0,0.00022739,3]
[349479225,1737203449827,-500.0,0.00022739,3]
[349479227,1737203449836,-7522.61,0.00022739,3]
[349479229,1737203449845,-166.448969,0.00022759,2]
[349479231,1737203449856,-500.0,0.00022876,3]
[349479233,1737203449865,-500.0,0.00022876,3]
[349479235,1737203449874,-500.0,0.00022876,3]
[349479237,1737203449888,-500.0,0.00022876,3]
[349479238,1737203449897,-500.0,0.00022876,3]
[349479240,1737203449908,-500.0,0.00022876,3]
[349479242,1737203449917,-500.0,0.00022876,3]
[349479244,1737203449928,-500.0,0.00022876,3]
[349479246,1737203449938,-500.0,0.00022876,3]
[349479248,1737203449947,-2827.76,0.00022876,3]
[349479250,1737203449956,-500.0,0.00022876,3]
[349479252,1737203449966,-500.0,0.00022876,3]
[349479254,1737203449976,-2135.98,0.00022876,3]
[349479256,1737203449986,-500.0,0.00022876,3]
[349479257,1737203449996,-500.0,0.00022876,3]
[349479259,1737203450006,-500.0,0.00022876,3]
[349479261,1737203450016,-500.0,0.00022876,3]
[349479263,1737203450025,-500.0,0.00022876,3]
[349479265,1737203450035,-535.66,0.00022876,3]
[349479267,1737203450045,-500.0,0.00022876,3]
[349479269,1737203450055,-500.0,0.00022876,3]
[349479271,1737203450065,-500.0,0.00022876,3]
[349479272,1737203450075,-500.0,0.00022876,3]
[349479274,1737203450085,-541.14784716,0.00022876,3]
[349479276,1737203450094,-500.0,0.00022876,3]
[349479278,1737203450104,-500.0,0.00022876,3]
[349479279,1737203450113,-599.39,0.00022876,3]
[349479280,1737203450123,-500.0,0.00022876,3]
[349479281,1737203450133,-11999.26,0.00022876,3]
[349479282,1737203450143,-500.0,0.00022876,3]
[349479283,1737203450153,-523.95,0.00022876,3]
[349479284,1737203450163,-500.0,0.00022876,3]
[349479285,1737203450173,-500.0,0.00022876,3]
[349479286,1737203450183,-500.0,0.00022876,3]
[349479287,1737203450192,-500.0,0.00022876,3]
[349479288,1737203450202,-500.0,0.00022876,3]
[349479289,1737203450211,-2144.0,0.00022876,3]
[349479290,1737203450220,-1152.45,0.00022876,3]
[349479291,1737203450230,-1329.89,0.00022876,3]
[349479292,1737203450239,-500.0,0.00022876,3]
[349479293,1737203450249,-500.0,0.00022876,3]
[349479294,1737203450259,-7522.61,0.00022876,3]
[349479295,1737203450268,-204.78081,0.000229,3]
[349479296,1737203450278,-204.78080978,0.00022936,3]
[349479297,1737203450287,-259.0,0.0002295,9]
[349479299,1737203450296,-204.78080978,0.00022971,3]
[349479300,1737203450306,-216.35362651,0.00022975,2]
[349479302,1737203450315,-567.28,0.00023,2]
[349479303,1737203450325,-7438.69753278,0.00023,2]
[349479304,1737203450334,-500.0,0.00023,8]
[349479305,1737203450344,-200.0,0.00023,2]
[349479306,1737203450354,-204.78080978,0.00023007,3]
[349479307,1737203450364,-500.0,0.00023013,3]
[349479308,1737203450373,-500.0,0.00023013,3]
[349479310,1737203450382,-500.0,0.00023013,3]
[349479311,1737203450392,-500.0,0.00023013,3]
[349479313,1737203450401,-500.0,0.00023013,3]
[349479314,1737203450411,-500.0,0.00023013,3]
[349479315,1737203450421,-2827.76,0.00023013,3]
[349479316,1737203450430,-500.0,0.00023013,3]
[349479317,1737203450439,-500.0,0.00023013,3]
[349479318,1737203450449,-2135.98,0.00023013,3]
[349479319,1737203450458,-500.0,0.00023013,3]
[349479320,1737203450468,-500.0,0.00023013,3]
[349479321,1737203450478,-470.98,0.00023013,3]
[349479322,1737203450487,-500.0,0.00023013,3]
[349479323,1737203450496,-535.66,0.00023013,3]
[349479324,1737203450506,-500.0,0.00023013,3]
[349479325,1737203450518,-500.0,0.00023013,3]
[349479326,1737203450527,-500.0,0.00023013,3]
[349479328,1737203450536,-500.0,0.00023013,3]
[349479329,1737203450546,-599.39,0.00023013,3]
[349479331,1737203450556,-11999.26,0.00023013,3]
[349479333,1737203450566,-500.0,0.00023013,3]
[349479334,1737203450575,-500.0,0.00023013,3]
[349479335,1737203450585,-428.47,0.00023013,3]
[349479336,1737203450594,-189.8862423,0.00023013,3]
[349479337,1737203450605,-249.02,0.00023013,3]
[349479338,1737203450614,-500.0,0.00023013,3]
[349479339,1737203450624,-2144.0,0.00023013,3]
[349479340,1737203450634,-1152.45,0.00023013,3]
[349479341,1737203450644,-1329.89,0.00023013,3]
[349479342,1737203450653,-500.0,0.00023013,3]
[349479343,1737203450664,-7522.61,0.00023013,3]
[349479344,1737203450673,-204.78080978,0.00023043,3]
[349479345,1737203450683,-204.78080978,0.00023079,3]
[349479346,1737203450692,-500.0,0.0002315,3]
[349479348,1737203450702,-500.0,0.0002315,3]
[349479350,1737203450711,-500.0,0.0002315,3]
[349479352,1737203450721,-326.48,0.0002315,3]
[349479354,1737203450730,-500.0,0.0002315,3]
[349479356,1737203450739,-2827.76,0.0002315,3]
[349479358,1737203450748,-500.0,0.0002315,3]
[349479360,1737203450757,-2135.98,0.0002315,3]
[349479362,1737203450766,-500.0,0.0002315,3]
[349479363,1737203450776,-500.0,0.0002315,3]
[349479365,1737203450785,-535.66,0.0002315,3]
[349479367,1737203450795,-500.0,0.0002315,3]
[349479369,1737203450804,-500.0,0.0002315,3]
[349479371,1737203450814,-500.0,0.0002315,3]
[349479373,1737203450824,-599.39,0.0002315,3]
[349479375,1737203450833,-11999.26,0.0002315,3]
[349479377,1737203450843,-585.68,0.0002315,3]
[349479379,1737203450852,-201.96,0.0002315,3]
[349479381,1737203450863,-592.0,0.0002315,3]
[349479383,1737203450871,-2144.0,0.0002315,3]
[349479385,1737203450882,-1152.45,0.0002315,3]
[349479387,1737203450893,-1329.89,0.0002315,3]
[349479389,1737203450903,-384.96,0.0002315,3]
[349479390,1737203450912,-7522.61,0.0002315,3]
[349479392,1737203450921,-216.35362651,0.00023264,2]
[349479394,1737203450931,-500.0,0.00023287,3]
[349479396,1737203450940,-500.0,0.00023287,3]
[349479398,1737203450950,-610.8,0.00023287,3]
[349479400,1737203450961,-500.0,0.00023287,3]
[349479402,1737203450970,-2827.76,0.00023287,3]
[349479404,1737203450979,-453.72,0.00023287,3]
[349479406,1737203450989,-2135.98,0.00023287,3]
[349479408,1737203450998,-500.0,0.00023287,3]
[349479410,1737203451007,-500.0,0.00023287,3]
[349479412,1737203451016,-535.66,0.00023287,3]
[349479414,1737203451025,-500.0,0.00023287,3]
[349479415,1737203451034,-500.0,0.00023287,3]
[349479417,1737203451043,-500.0,0.00023287,3]
[349479419,1737203451053,-599.39,0.00023287,3]
[349479421,1737203451062,-11999.26,0.00023287,3]
[349479423,1737203451071,-2144.0,0.00023287,3]
[349479425,1737203451080,-1152.45,0.00023287,3]
[349479427,1737203451089,-1329.89,0.00023287,3]
[349479429,1737203451098,-7522.61,0.00023287,3]
[349479431,1737203451108,-501.51037317,0.000233,5]
[349479433,1737203451117,-249.09,0.00023424,3]
[349479435,1737203451128,-500.0,0.00023424,3]
[349479437,1737203451137,-500.0,0.00023424,3]
[349479439,1737203451147,-2827.76,0.00023424,3]
[349479441,1737203451156,-2135.98,0.00023424,3]
[349479442,1737203451166,-398.52,0.00023424,3]
[349479444,1737203451175,-500.0,0.00023424,3]
[349479446,1737203451186,-535.66,0.00023424,3]
[349479448,1737203451195,-642.8,0.00023424,3]
[349479450,1737203451204,-500.0,0.00023424,3]
[349479451,1737203451213,-500.0,0.00023424,3]
[349479452,1737203451223,-599.39,0.00023424,3]
[349479453,1737203451232,-11999.26,0.00023424,3]
[349479454,1737203451241,-2144.0,0.00023424,3]
[349479456,1737203451251,-1152.45,0.00023424,3]
[349479457,1737203451260,-1329.89,0.00023424,3]
[349479459,1737203451270,-7522.61,0.00023424,3]
[349479460,1737203451279,-392.81167011,0.000235,2]
[349479461,1737203451288,-300.0,0.000235,10]
[349479462,1737203451297,-216.35362651,0.00023554,2]
[349479463,1737203451306,-25090.23165808,0.00023561,59]
[349479464,1737203451316,-500.0,0.00023561,3]
[349479465,1737203451325,-500.0,0.00023561,3]
[349479466,1737203451334,-2827.76,0.00023561,3]
[349479467,1737203451343,-2135.98,0.00023561,3]
[349479468,1737203451353,-500.0,0.00023561,3]
[349479469,1737203451363,-535.66,0.00023561,3]
[349479470,1737203451372,-500.0,0.00023561,3]
[349479471,1737203451381,-500.0,0.00023561,3]
[349479472,1737203451391,-599.39,0.00023561,3]
[349479473,1737203451400,-11999.26,0.00023561,3]
[349479474,1737203451409,-2144.0,0.00023561,3]
[349479475,1737203451418,-1152.45,0.00023561,3]
[349479476,1737203451428,-1329.89,0.00023561,3]
[349479477,1737203451437,-7522.61,0.00023561,3]
[349479478,1737203451447,-22559.35537615,0.00023591,2]
[349479479,1737203451456,-8813.08925484,0.0002365,14]
[349479480,1737203451465,-1200.0,0.00023677,2]
[349479481,1737203451475,-500.0,0.00023698,3]
[349479482,1737203451484,-500.0,0.00023698,3]
[349479483,1737203451494,-2827.76,0.00023698,3]
[349479484,1737203451504,-2135.98,0.00023698,3]
[349479485,1737203451513,-500.0,0.00023698,3]
[349479486,1737203451523,-535.66,0.00023698,3]
[349479487,1737203451532,-500.0,0.00023698,3]
[349479488,1737203451541,-500.0,0.00023698,3]
[349479490,1737203451551,-599.39,0.00023698,3]
[349479491,1737203451561,-11999.26,0.00023698,3]
[349479493,1737203451570,-2144.0,0.00023698,3]
[349479495,1737203451579,-1152.45,0.00023698,3]
[349479499,1737203451668,-1329.89,0.00023698,3]
[349479500,1737203451677,-7522.61,0.00023698,3]
[349479501,1737203451687,-153.44,0.000237,31]
[349479502,1737203451696,-153.44,0.000237,31]
[349479503,1737203451706,-153.44,0.000237,31]
[349479504,1737203451715,-153.44,0.000237,31]
[349479505,1737203451725,-153.44,0.000237,31]
[349479506,1737203451735,-153.44,0.000237,31]
[349479507,1737203451745,-153.44,0.000237,31]
[349479508,1737203451755,-2979.0,0.00023723,7]
[349479509,1737203451765,-5000.0,0.00023754,7]
[349479510,1737203451775,-2000.0,0.000238,2]
[349479511,1737203451784,-2000.0,0.000238,2]
[349479512,1737203451793,-3257.8683209,0.000238,2]
[349479513,1737203451803,-3257.8683209,0.000238,2]
[349479514,1737203451813,-3257.8683209,0.000238,2]
[349479515,1737203451822,-3257.8683209,0.000238,2]
[349479516,1737203451832,-500.0,0.00023835,3]
[349479517,1737203451842,-500.0,0.00023835,3]
[349479518,1737203451852,-2827.76,0.00023835,3]
[349479519,1737203451865,-2135.98,0.00023835,3]
[349479520,1737203451875,-204.06,0.00023835,3]
[349479521,1737203451888,-535.66,0.00023835,3]
[349479522,1737203451898,-500.0,0.00023835,3]
[349479523,1737203451908,-565.02,0.00023835,3]
[349479524,1737203451918,-599.39,0.00023835,3]
[349479525,1737203451930,-11999.26,0.00023835,3]
[349479526,1737203451939,-2144.0,0.00023835,3]
[349479527,1737203451949,-1152.45,0.00023835,3]
[349479528,1737203451959,-1329.89,0.00023835,3]
[349479529,1737203451968,-7522.61,0.00023835,3]
[349479530,1737203451979,-5049.49046286,0.00023843,2]
[349479531,1737203451989,-216.35362651,0.00023843,2]
[349479532,1737203451999,-5000.0,0.00023847,2]
[349479533,1737203452008,-5000.0,0.00023847,2]
[349479534,1737203452017,-5000.0,0.00023847,2]
[349479535,1737203452027,-5000.0,0.00023847,2]
[349479536,1737203452036,-5000.0,0.00023847,2]
[349479537,1737203452045,-151.0,0.000239,7]
[349479538,1737203452055,-426.6908665,0.000239,2]
[349479539,1737203452065,-500.0,0.00023941,2]
[349479540,1737203452074,-48395.0932412,0.00023943,61]
[349479541,1737203452090,-38502.24912409,0.00023943,61]
[349479542,1737203452100,-3625.2861096,0.00023943,61]
[349479544,1737203517086,167.44893,0.00013973,2]
[349479547,1737204370955,168.454458,0.00013973,2]
[349479574,1737204632211,-169.59727,0.00019997,2]
[349479575,1737204632221,-389.5544885,0.00020552,2]
[349479576,1737204632269,-111.73675628,0.00020552,2]
[349479578,1737204632278,-169.59727,0.0002061,2]
[349479579,1737204632288,-300.0,0.00020999,2]
[349479580,1737204632298,-571.79636925,0.00021,10]
[349479581,1737204632309,-745.44784352,0.00021,10]
[349479582,1737204632323,-33655.07578723,0.00021,10]
[349479583,1737204632334,-178.95740512,0.00021817,2]
[349479584,1737204632344,-500.0,0.00021917,3]
[349479585,1737204632353,-500.0,0.00021917,3]
[349479586,1737204632363,-500.0,0.00021917,3]
[349479587,1737204632372,-438.60511602,0.00021917,3]
[349479588,1737204632381,-315.64760294,0.00021917,3]
[349479589,1737204632391,-500.0,0.00021917,3]
[349479590,1737204632400,-500.0,0.00021917,3]
[349479591,1737204632408,-442.25102514,0.00021917,3]
[349479592,1737204632418,-500.0,0.00021917,3]
[349479593,1737204632427,-500.0,0.00021917,3]
[349479594,1737204632437,-500.0,0.00021917,3]
[349479595,1737204632446,-500.0,0.00021917,3]
[349479596,1737204632563,-500.0,0.00021917,3]
[349479597,1737204632573,-500.0,0.00021917,3]
[349479598,1737204632583,-500.0,0.00021917,3]
[349479599,1737204632592,-500.0,0.00021917,3]
[349479600,1737204632601,-500.0,0.00021917,3]
[349479601,1737204632610,-500.0,0.00021917,3]
[349479602,1737204632620,-500.0,0.00021917,3]
[349479603,1737204632630,-500.0,0.00021917,3]
[349479604,1737204632639,-500.0,0.00021917,3]
[349479605,1737204632649,-500.0,0.00021917,3]
[349479606,1737204632658,-500.0,0.00021917,3]
[349479607,1737204632668,-500.0,0.00021917,3]
[349479608,1737204632680,-500.0,0.00021917,3]
[349479609,1737204632690,-500.0,0.00021917,3]
[349479610,1737204632700,-500.0,0.00021917,3]
[349479611,1737204632709,-500.0,0.00021917,2]
[349479612,1737204632719,-500.0,0.00021917,3]
[349479613,1737204632730,-500.0,0.00021917,3]
[349479614,1737204632739,-500.0,0.00021917,3]
[349479615,1737204632750,-500.0,0.00021917,3]
[349479616,1737204632761,-500.0,0.00021917,3]
[349479617,1737204632771,-500.0,0.00021917,3]
[349479618,1737204632781,-500.0,0.00021917,2]
[349479619,1737204632790,-500.0,0.00021917,3]
[349479620,1737204632800,-242.94199642,0.00021917,3]
[349479621,1737204632810,-500.0,0.00021917,3]
[349479622,1737204632819,-500.0,0.00021917,3]
[349479623,1737204632829,-500.0,0.00021917,3]
[349479624,1737204632839,-500.0,0.00021917,3]
[349479625,1737204632850,-500.0,0.00021917,3]
[349479626,1737204632859,-500.0,0.00021917,3]
[349479627,1737204632868,-500.0,0.00021917,3]
[349479628,1737204632878,-500.0,0.00021917,3]
[349479629,1737204632888,-500.0,0.00021917,3]
[349479630,1737204632897,-500.0,0.00021917,3]
[349479631,1737204632907,-500.0,0.00021917,3]
[349479632,1737204632916,-500.0,0.00021917,3]
[349479633,1737204632925,-500.0,0.00021917,3]
[349479634,1737204632934,-500.0,0.00021917,3]
[349479635,1737204632944,-500.0,0.00021917,3]
[349479636,1737204632953,-216.65048523,0.00021917,3]
[349479637,1737204632963,-500.0,0.00021917,3]
[349479638,1737204632972,-5155.42,0.00021917,3]
[349479639,1737204632981,-500.0,0.00021917,3]
[349479640,1737204632990,-500.0,0.00021917,3]
[349479641,1737204632999,-150.63058654,0.00021917,3]
[349479642,1737204633008,-500.0,0.00021917,3]
[349479643,1737204633018,-927.07,0.00021917,3]
[349479644,1737204633027,-500.0,0.00021917,3]
[349479645,1737204633037,-500.0,0.00021917,3]
[349479646,1737204633046,-500.0,0.00021917,3]
[349479647,1737204633055,-500.0,0.00021917,3]
[349479648,1737204633065,-500.0,0.00021917,3]
[349479649,1737204633074,-500.0,0.00021917,3]
[349479650,1737204633083,-500.0,0.00021917,3]
[349479651,1737204633093,-500.0,0.00021917,3]
[349479652,1737204633103,-500.0,0.00021917,3]
[349479653,1737204633113,-500.0,0.00021917,3]
[349479654,1737204633123,-500.0,0.00021917,3]
[349479655,1737204633132,-500.0,0.00021917,3]
[349479656,1737204633141,-500.0,0.00021917,3]
[349479657,1737204633151,-500.0,0.00021917,3]
[349479658,1737204633160,-500.0,0.00021917,3]
[349479659,1737204633169,-668.56,0.00021917,3]
[349479660,1737204633178,-500.0,0.00021917,3]
[349479661,1737204633188,-3964.21,0.00021917,3]
[349479662,1737204633202,-952.7,0.00021917,3]
[349479663,1737204633212,-236.31605315,0.00021917,3]
[349479664,1737204633221,-1120.37,0.00021917,3]
[349479665,1737204633231,-500.0,0.00021917,3]
[349479666,1737204633241,-500.0,0.00021917,3]
[349479667,1737204633250,-500.0,0.00021917,3]
[349479668,1737204633260,-500.0,0.00021917,3]
[349479669,1737204633269,-640.93,0.00021917,3]
[349479670,1737204633279,-500.0,0.00021917,3]
[349479671,1737204633289,-500.0,0.00021917,3]
[349479672,1737204633298,-500.0,0.00021917,3]
[349479673,1737204633308,-500.0,0.00021917,3]
[349479674,1737204633317,-500.0,0.00021917,3]
[349479675,1737204633327,-500.0,0.00021917,3]
[349479676,1737204633336,-500.0,0.00021917,3]
[349479677,1737204633346,-500.0,0.00021917,3]
[349479678,1737204633355,-500.0,0.00021917,3]
[349479679,1737204633365,-500.0,0.00021917,3]
[349479680,1737204633376,-500.0,0.00021917,3]
[349479681,1737204633386,-500.0,0.00022054,2]
[349479682,1737204633395,-500.0,0.00022054,3]
[349479683,1737204633405,-500.0,0.00022054,3]
[349479684,1737204633415,-500.0,0.00022054,3]
[349479685,1737204633424,-500.0,0.00022054,3]
[349479686,1737204633434,-500.0,0.00022054,3]
[349479687,1737204633444,-500.0,0.00022054,3]
[349479688,1737204633453,-5155.42,0.00022054,3]
[349479689,1737204633463,-500.0,0.00022054,3]
[349479690,1737204633473,-349.31866055,0.00022054,3]
[349479691,1737204633487,-150.68133945,0.00022054,3]
[349479692,1737204633496,-927.07,0.00022054,3]
[349479693,1737204633507,-211.56038296,0.00022054,3]
[349479718,1737204638071,-500.0,0.00021698,2]
[349479719,1737204638080,-514.07,0.00021917,3]
[349479720,1737204638090,-288.43961704,0.00022054,3]
[349479721,1737204638100,-500.0,0.00022054,3]
[349479722,1737204638109,-500.0,0.00022054,3]
[349479723,1737204638119,-500.0,0.00022054,3]
[349479724,1737204638128,-500.0,0.00022054,3]
[349479725,1737204638137,-500.0,0.00022054,3]
[349479726,1737204638146,-500.0,0.00022054,3]
[349479728,1737204638156,-500.0,0.00022054,3]
[349479729,1737204638166,-668.56,0.00022054,3]
[349479731,1737204638175,-3964.21,0.00022054,3]
[349479733,1737204638184,-952.7,0.00022054,3]
[349479736,1737204638196,-1120.37,0.00022054,3]
[349479737,1737204638205,-500.0,0.00022054,3]
[349479740,1737204638215,-640.93,0.00022054,3]
[349479742,1737204638224,-500.0,0.00022054,3]
[349479744,1737204638234,-500.0,0.00022054,3]
[349479745,1737204638244,-500.0,0.00022054,3]
[349479748,1737204638253,-500.0,0.00022054,3]
[349479750,1737204638262,-500.0,0.00022054,3]
[349479752,1737204638272,-554.56754953,0.00022054,3]
[349479753,1737204638282,-500.0,0.00022191,2]
[349479755,1737204638291,-500.0,0.00022191,3]
[349479758,1737204638301,-500.0,0.00022191,3]
[349479760,1737204638310,-500.0,0.00022191,3]
[349479761,1737204638319,-3717.29699276,0.00022191,3]
[349479811,1737204640238,-1438.12300724,0.00022191,3]
[349479812,1737204640250,-536.95323792,0.00022191,3]
[349479813,1737204640259,-500.0,0.00022191,3]
[349479814,1737204640270,-927.07,0.00022191,3]